[Event "NJSK 2018 Meisjes C"]
[Site "Assen, Netherlands"]
[Date "2018.05.02"]
[Round "4.5"]
[White "Honkoop, Stella"]
[Black "Morote, Luna"]
[Result "1-0"]
[TimeControl "40/90m+30m+30sec/move"]
[WhiteElo "1583"]
[BlackElo "1415"]

1. e4 {[%clk 01:30:58]} {[%emt 00:00:02]} c5 {[%clk 01:30:57]} {[%emt
00:00:04]} 2. d3 {[%clk 01:30:55]} {[%emt 00:00:32]} d6 {[%clk 01:31:19]}
{[%emt 00:00:08]} 3. g3 {[%clk 01:30:27]} {[%emt 00:00:58]} Nf6 {[%clk
01:30:49]} {[%emt 00:01:00]} 4. Bg2 {[%clk 01:30:25]} {[%emt 00:00:33]} e6
{[%clk 01:30:57]} {[%emt 00:00:22]} 5. Nf3 {[%clk 01:30:21]} {[%emt 00:00:34]}
Be7 {[%clk 01:31:06]} {[%emt 00:00:20]} 6. O-O {[%clk 01:30:38]} {[%emt
00:00:13]} Nc6 {[%clk 01:30:40]} {[%emt 00:00:55]} 7. c3 {[%clk 01:30:29]}
{[%emt 00:00:40]} a6 {[%clk 01:30:39]} {[%emt 00:00:31]} 8. a4 {[%clk
01:30:38]} {[%emt 00:00:21]} O-O {[%clk 01:30:10]} {[%emt 00:00:58]} 9. Nbd2
{[%clk 01:31:01]} {[%emt 00:00:08]} Qc7 {[%clk 01:28:48]} {[%emt 00:01:51]} 10.
Qe2 {[%clk 01:30:08]} {[%emt 00:01:24]} b6 {[%clk 01:26:56]} {[%emt 00:02:23]}
11. Rd1 {[%clk 01:29:11]} {[%emt 00:01:27]} Bb7 {[%clk 01:21:50]} {[%emt
00:05:35]} 12. Nf1 {[%clk 01:25:46]} {[%emt 00:03:55]} Rac8 {[%clk 01:18:30]}
{[%emt 00:03:49]} 13. Ne3 {[%clk 01:17:55]} {[%emt 00:08:22]} Na5 {[%clk
01:04:24]} {[%emt 00:14:35]} 14. h4 {[%clk 01:06:45]} {[%emt 00:11:41]} Rfd8
{[%clk 00:55:27]} {[%emt 00:09:26]} 15. Nd2 {[%clk 00:55:56]} {[%emt 00:11:20]}
Bf8 {[%clk 00:44:15]} {[%emt 00:11:42]} 16. Ng4 {[%clk 00:48:32]} {[%emt
00:07:54]} Be7 {[%clk 00:41:33]} {[%emt 00:03:11]} 17. b3 {[%clk 00:41:03]}
{[%emt 00:08:00]} Re8 {[%clk 00:30:15]} {[%emt 00:11:48]} 18. Rb1 {[%clk
00:34:40]} {[%emt 00:06:53]} d5 {[%clk 00:26:53]} {[%emt 00:03:51]} 19. Nf1
{[%clk 00:28:09]} {[%emt 00:07:02]} Nxg4 {[%clk 00:19:00]} {[%emt 00:08:23]} 20.
Qxg4 {[%clk 00:27:57]} {[%emt 00:00:42]} Bf6 {[%clk 00:18:22]} {[%emt
00:01:08]} 21. Bd2 {[%clk 00:22:38]} {[%emt 00:05:49]} dxe4 {[%clk 00:16:10]}
{[%emt 00:02:41]} 22. dxe4 {[%clk 00:18:58]} {[%emt 00:04:11]} Rcd8 {[%clk
00:09:45]} {[%emt 00:06:54]} 23. Rdc1 {[%clk 00:12:39]} {[%emt 00:06:50]} Kh8
{[%clk 00:07:44]} {[%emt 00:02:30]} 24. Qe2 {[%clk 00:08:54]} {[%emt 00:04:15]}
Rd7 {[%clk 00:07:28]} {[%emt 00:00:47]} 25. Re1 {[%clk 00:08:15]} {[%emt
00:01:08]} Red8 {[%clk 00:06:26]} {[%emt 00:01:32]} 26. e5 {[%clk 00:06:42]}
{[%emt 00:02:04]} Be7 {[%clk 00:06:43]} {[%emt 00:00:13]} 27. Bxb7 {[%clk
00:06:37]} {[%emt 00:00:35]} Qxb7 {[%clk 00:06:45]} {[%emt 00:00:28]} 28. Bf4
{[%clk 00:06:25]} {[%emt 00:00:41]} Rd3 {[%clk 00:05:57]} {[%emt 00:01:17]} 29.
Rec1 {[%clk 00:06:20]} {[%emt 00:00:37]} Qf3 {[%clk 00:04:56]} {[%emt
00:01:30]} 30. Qxf3 {[%clk 00:05:57]} {[%emt 00:00:53]} Rxf3 {[%clk 00:05:04]}
{[%emt 00:00:22]} 31. Be3 {[%clk 00:05:29]} {[%emt 00:00:59]} f6 {[%clk
00:03:40]} {[%emt 00:01:54]} 32. exf6 {[%clk 00:04:25]} {[%emt 00:01:34]} Rxf6
{[%clk 00:03:43]} {[%emt 00:00:27]} 33. Bg5 {[%clk 00:04:32]} {[%emt 00:00:23]}
Rf7 {[%clk 00:04:05]} {[%emt 00:00:08]} 34. Bxe7 {[%clk 00:04:53]} {[%emt
00:00:09]} Rxe7 {[%clk 00:04:30]} {[%emt 00:00:04]} 35. b4 {[%clk 00:04:49]}
{[%emt 00:00:34]} cxb4 {[%clk 00:04:42]} {[%emt 00:00:19]} 36. cxb4 {[%clk
00:05:08]} {[%emt 00:00:10]} Nb7 {[%clk 00:04:55]} {[%emt 00:00:17]} 37. Rc6
{[%clk 00:04:51]} {[%emt 00:00:48]} Rd6 {[%clk 00:05:12]} {[%emt 00:00:13]} 38.
Rc8 {[%clk 00:04:56]} {[%emt 00:00:25]} Rd8 {[%clk 00:05:24]} {[%emt 00:00:18]}
39. Rbc1 {[%clk 00:04:23]} {[%emt 00:01:03]} Red7 {[%clk 00:04:54]} {[%emt
00:01:00]} 40. R1c6 {[%clk 00:02:25]} {[%emt 00:02:28]} Rxc8 {[%clk 00:04:58]}
{[%emt 00:00:26]} 41. Rxc8 {[%clk 00:02:49]} {[%emt 00:00:05]} Rd8 {[%clk
00:05:19]} {[%emt 00:00:08]} 42. Rc7 {[%clk 00:01:57]} {[%emt 00:01:23]} Rb8
{[%clk 00:03:57]} {[%emt 00:01:52]} 43. Re7 {[%clk 00:01:04]} {[%emt 00:01:24]}
Kg8 {[%clk 00:01:15]} {[%emt 00:03:12]} 44. Rxe6 {[%clk 00:00:58]} {[%emt
00:00:35]} Nd8 {[%emt 00:01:43]} 45. Re4 {[%clk 00:29:59]} Kf7 {[%clk
00:31:15]} {[%emt 00:00:47]} 46. Ne3 {[%clk 00:29:45]} {[%emt 00:00:44]} b5
{[%clk 00:29:30]} {[%emt 00:02:14]} 47. a5 {[%clk 00:27:56]} {[%emt 00:02:19]}
Nc6 {[%clk 00:29:11]} {[%emt 00:00:49]} 48. Kf1 {[%clk 00:26:25]} {[%emt
00:02:01]} Re8 {[%clk 00:28:14]} {[%emt 00:01:28]} 49. Rf4+ {[%clk 00:23:15]}
{[%emt 00:03:40]} Ke6 {[%clk 00:26:54]} {[%emt 00:01:45]} 50. Nc2 {[%clk
00:21:27]} {[%emt 00:02:23]} Rd8 {[%clk 00:24:51]} {[%emt 00:02:31]} 51. Ke2
{[%clk 00:20:09]} {[%emt 00:01:49]} Rd7 {[%clk 00:23:25]} {[%emt 00:01:57]} 52.
Ke3 {[%clk 00:18:58]} {[%emt 00:01:41]} Rd1 {[%clk 00:19:16]} {[%emt 00:04:38]}
53. Nd4+ {[%clk 00:16:43]} {[%emt 00:02:45]} Nxd4 {[%clk 00:19:24]} {[%emt
00:00:22]} 54. Rxd4 {[%clk 00:17:07]} {[%emt 00:00:06]} Rc1 {[%clk 00:18:38]}
{[%emt 00:01:16]} 55. f3 {[%clk 00:15:24]} {[%emt 00:02:13]} Rc3+ {[%clk
00:16:07]} {[%emt 00:03:00]} 56. Ke4 {[%clk 00:14:07]} {[%emt 00:01:48]} Rc1
{[%clk 00:16:09]} {[%emt 00:00:28]} 57. h5 {[%clk 00:12:50]} {[%emt 00:01:48]}
Re1+ {[%clk 00:16:03]} {[%emt 00:00:36]} 58. Kf4 {[%emt 00:01:44]} Rc1 {[%clk
00:15:20]} 59. Kg5 {[%clk 00:10:41]} {[%emt 00:02:36]} Rc3 {[%clk 00:13:13]}
{[%emt 00:02:37]} 60. Rf4 {[%clk 00:09:08]} {[%emt 00:02:03]} Rc7 {[%clk
00:12:30]} {[%emt 00:01:10]} 61. h6 {[%clk 00:08:19]} {[%emt 00:01:22]} Rd7
{[%clk 00:11:30]} {[%emt 00:01:28]} 62. Re4+ {[%clk 00:06:55]} {[%emt
00:01:56]} Kf7 {[%clk 00:11:02]} {[%emt 00:00:58]} 63. hxg7 {[%clk 00:06:02]}
{[%emt 00:01:23]} Kxg7 {[%clk 00:11:19]} {[%emt 00:00:12]} 64. Re6 {[%clk
00:06:01]} {[%emt 00:00:32]} Rd5+ {[%clk 00:11:39]} {[%emt 00:00:11]} 65. Kf4
{[%clk 00:05:57]} {[%emt 00:00:34]} Rd4+ {[%clk 00:11:55]} {[%emt 00:00:13]} 66.
Re4 {[%clk 00:06:23]} {[%emt 00:00:04]} Rd6 {[%clk 00:12:15]} {[%emt 00:00:11]}
67. g4 {[%clk 00:06:13]} {[%emt 00:00:39]} Rf6+ {[%clk 00:12:27]} {[%emt
00:00:18]} 68. Kg3 {[%clk 00:06:14]} {[%emt 00:00:29]} Kg6 {[%clk 00:11:26]}
{[%emt 00:01:31]} 69. f4 {[%clk 00:05:45]} {[%emt 00:00:59]} h6 {[%clk
00:11:21]} {[%emt 00:00:35]} 70. Kh4 {[%clk 00:05:24]} {[%emt 00:00:52]} Rd6
{[%clk 00:11:21]} {[%emt 00:00:30]} 71. f5+ {[%clk 00:05:02]} {[%emt 00:00:52]}
Kg7 {[%clk 00:11:27]} {[%emt 00:00:23]} 72. Rf4 {[%clk 00:03:32]} {[%emt
00:02:00]} Rf6 {[%clk 00:11:01]} {[%emt 00:00:55]} 73. g5 {[%clk 00:03:16]}
{[%emt 00:00:47]} hxg5 {[%clk 00:11:08]} {[%emt 00:00:23]} 74. Kxg5 {[%clk
00:03:42]} {[%emt 00:00:03]} Rd6 {[%clk 00:10:23]} {[%emt 00:01:16]} 75. Re4
{[%clk 00:03:36]} {[%emt 00:00:37]} Kf7 {[%clk 00:09:49]} {[%emt 00:01:03]} 76.
Kf4 {[%clk 00:03:10]} {[%emt 00:00:57]} Kf6 {[%clk 00:09:30]} {[%emt 00:00:48]}
77. Kg4 {[%clk 00:02:11]} {[%emt 00:01:29]} Kg7 {[%clk 00:08:22]} {[%emt
00:01:39]} 78. Kg5 {[%clk 00:01:58]} {[%emt 00:00:43]} Kf7 {[%clk 00:08:31]}
{[%emt 00:00:20]} 79. Rf4 {[%clk 00:02:11]} {[%emt 00:00:17]} Kg7 {[%clk
00:08:34]} {[%emt 00:00:27]} 80. Rg4 {[%clk 00:01:23]} {[%emt 00:01:19]} Kf7
{[%clk 00:08:00]} {[%emt 00:01:04]} 81. Kf4 {[%clk 00:01:14]} {[%emt 00:00:38]}
Rd4+ {[%emt 00:00:57]} 82. Kf3 {[%emt 00:00:12]} Rd3+ {[%clk 00:06:16]} {[%emt
00:01:05]} 83. Ke4 {[%clk 00:01:28]} {[%emt 00:00:16]} Rd6 {[%clk 00:06:16]}
{[%emt 00:00:30]} 84. Rg6 {[%clk 00:01:13]} {[%emt 00:00:45]} 1-0

[Event "NJSK 2018 Meisjes C"]
[Site "Assen, Netherlands"]
[Date "2018.05.02"]
[Round "4.6"]
[White "Van Essen, Marieke"]
[Black "Cordes, Jule"]
[Result "1-0"]
[TimeControl "40/90m+30m+30sec/move"]
[WhiteElo "1282"]
[BlackElo "1551"]

1. e4 {[%clk 01:30:59]} {[%emt 18:26:40]} e5 {[%clk 01:30:51]} {[%emt
00:00:10]} 2. Nf3 {[%clk 01:31:26]} {[%emt 00:00:04]} Nc6 {[%clk 01:31:11]}
{[%emt 00:00:10]} 3. Bc4 {[%clk 01:31:52]} {[%emt 00:00:04]} Bc5 {[%clk
01:31:30]} {[%emt 00:00:11]} 4. Nc3 {[%clk 01:31:43]} {[%emt 00:00:39]} d6
{[%clk 01:31:20]} {[%emt 00:00:39]} 5. h3 {[%clk 01:31:52]} {[%emt 00:00:20]}
Be6 {[%clk 01:31:16]} {[%emt 00:00:35]} 6. Bb3 {[%clk 01:32:00]} {[%emt
00:00:23]} Nf6 {[%clk 01:30:43]} {[%emt 00:01:02]} 7. d3 {[%clk 01:31:58]}
{[%emt 00:00:32]} Qd7 {[%clk 01:30:32]} {[%emt 00:00:41]} 8. Be3 {[%clk
01:32:01]} {[%emt 00:00:28]} Bxe3 {[%clk 01:29:32]} {[%emt 00:01:29]} 9. fxe3
{[%clk 01:32:24]} {[%emt 00:00:07]} O-O-O {[%clk 01:26:46]} {[%emt 00:03:17]}
10. Nd5 {[%clk 01:27:45]} {[%emt 00:05:09]} Ne7 {[%clk 01:23:12]} {[%emt
00:04:04]} 11. c4 {[%clk 01:22:27]} {[%emt 00:05:47]} Rdg8 {[%clk 01:12:14]}
{[%emt 00:11:28]} 12. Ba4 {[%clk 01:19:32]} {[%emt 00:03:25]} Qd8 {[%clk
01:09:58]} {[%emt 00:02:44]} 13. Qb3 {[%clk 01:16:49]} {[%emt 00:03:16]} c6
{[%clk 01:06:06]} {[%emt 00:04:22]} 14. Nxe7+ {[%clk 01:13:10]} {[%emt
00:04:08]} Qxe7 {[%clk 01:06:05]} {[%emt 00:00:31]} 15. Qa3 {[%clk 01:11:53]}
{[%emt 00:01:48]} a5 {[%clk 00:47:50]} {[%emt 00:18:45]} 16. Nxe5 {[%clk
01:08:42]} {[%emt 00:03:40]} Bxh3 {[%clk 00:40:28]} {[%emt 00:07:52]} 17. Nxc6
{[%clk 01:06:34]} {[%emt 00:02:39]} bxc6 {[%clk 00:37:41]} {[%emt 00:03:16]} 18.
gxh3 {[%clk 01:06:43]} {[%emt 00:00:20]} Qc7 {[%clk 00:37:16]} {[%emt
00:00:53]} 19. O-O-O {[%clk 01:01:09]} {[%emt 00:06:07]} Kd7 {[%clk 00:33:11]}
{[%emt 00:04:35]} 20. Qc3 {[%clk 00:58:16]} {[%emt 00:03:24]} Qb6 {[%clk
00:28:03]} {[%emt 00:05:33]} 21. Qd4 {[%clk 00:55:17]} {[%emt 00:03:33]} Kc7
{[%clk 00:24:50]} {[%emt 00:03:41]} 22. e5 {[%clk 00:51:09]} {[%emt 00:04:39]}
Qxd4 {[%clk 00:24:42]} {[%emt 00:00:38]} 23. exd4 {[%clk 00:51:33]} {[%emt
00:00:06]} Nd7 {[%clk 00:24:19]} {[%emt 00:00:52]} 24. exd6+ {[%clk 00:50:06]}
{[%emt 00:01:58]} Kxd6 {[%clk 00:24:04]} {[%emt 00:00:45]} 25. Rde1 {[%clk
00:48:32]} {[%emt 00:02:05]} f6 {[%clk 00:22:11]} {[%emt 00:02:23]} 26. c5+
{[%clk 00:47:39]} {[%emt 00:01:24]} Kc7 {[%clk 00:21:00]} {[%emt 00:01:40]} 27.
Re6 {[%clk 00:45:08]} {[%emt 00:03:01]} Nb8 {[%clk 00:20:30]} {[%emt 00:00:58]}
28. Re7+ {[%clk 00:43:19]} {[%emt 00:02:21]} Kc8 {[%clk 00:20:13]} {[%emt
00:00:46]} 29. Bb3 {[%clk 00:40:54]} {[%emt 00:02:56]} Rd8 {[%clk 00:20:07]}
{[%emt 00:00:31]} 30. Be6+ {[%clk 00:41:06]} {[%emt 00:00:23]} Nd7 {[%clk
00:20:24]} {[%emt 00:00:11]} 31. Rxg7 {[%clk 00:41:09]} {[%emt 00:00:29]} h5
{[%clk 00:17:47]} {[%emt 00:03:07]} 32. Rf1 {[%clk 00:41:13]} {[%emt 00:00:26]}
Rh6 {[%clk 00:14:16]} {[%emt 00:04:01]} 33. Rf7 {[%clk 00:39:10]} {[%emt
00:02:33]} Kc7 {[%clk 00:13:42]} {[%emt 00:01:01]} 34. Rf5 {[%clk 00:38:03]}
{[%emt 00:01:40]} h4 {[%clk 00:11:07]} {[%emt 00:03:03]} 35. Kc2 {[%clk
00:37:16]} {[%emt 00:01:18]} Rg6 {[%clk 00:06:36]} {[%emt 00:05:01]} 36. Rh5
{[%clk 00:35:46]} {[%emt 00:02:01]} Rg2+ {[%clk 00:06:42]} {[%emt 00:00:23]} 37.
Kc3 {[%clk 00:36:08]} {[%emt 00:00:09]} Re2 {[%clk 00:05:40]} {[%emt 00:01:29]}
38. Bg4 {[%clk 00:35:26]} {[%emt 00:01:15]} Re1 {[%clk 00:05:30]} {[%emt
00:00:37]} 39. Rxh4 {[%clk 00:33:49]} {[%emt 00:02:10]} Rf1 {[%clk 00:03:42]}
{[%emt 00:02:18]} 40. Rhh7 {[%clk 00:32:46]} {[%emt 00:01:32]} f5 {[%clk
00:00:55]} {[%emt 00:03:16]} 41. Bxf5 {[%clk 00:32:12]} {[%emt 00:01:05]} Rxf5
{[%clk 00:00:36]} {[%emt 00:00:50]} 42. Rxf5 {[%clk 00:32:37]} {[%emt
00:00:05]} Kc8 {[%clk 00:29:58]} {[%emt 00:01:07]} 43. Rff7 {[%clk 01:02:57]}
{[%emt 00:00:11]} Kc7 {[%clk 00:29:42]} {[%emt 00:00:45]} 44. h4 {[%clk
01:03:12]} {[%emt 00:00:16]} Kc8 {[%clk 00:28:20]} {[%emt 00:01:51]} 45. h5
{[%clk 01:03:23]} {[%emt 00:00:21]} Kc7 {[%clk 00:28:41]} {[%emt 00:00:08]} 46.
h6 {[%clk 01:03:49]} {[%emt 00:00:04]} Kc8 {[%clk 00:28:58]} {[%emt 00:00:13]}
47. Rxd7 {[%clk 01:04:08]} {[%emt 00:00:11]} 1-0

[Event "NJSK 2018 Meisjes C"]
[Site "Assen, Netherlands"]
[Date "2018.05.02"]
[Round "4.7"]
[White "Martinez, Sara"]
[Black "Velasco, Kathleen"]
[Result "1-0"]
[TimeControl "40/90m+30m+30sec/move"]
[WhiteElo "1446"]
[BlackElo "1284"]

1. e4 {[%clk 01:30:58]} {[%emt 00:00:02]} e5 {[%clk 01:30:59]} {[%emt
00:00:02]} 2. Nf3 {[%clk 01:31:23]} {[%emt 00:00:05]} Nc6 {[%clk 01:31:25]}
{[%emt 00:00:03]} 3. d4 {[%clk 01:31:48]} {[%emt 00:00:05]} exd4 {[%clk
01:31:52]} {[%emt 00:00:04]} 4. Nxd4 {[%clk 01:32:13]} {[%emt 00:00:05]} Bc5
{[%clk 01:31:32]} {[%emt 00:00:50]} 5. Be3 {[%clk 01:32:36]} {[%emt 00:00:07]}
Qf6 {[%clk 01:31:45]} {[%emt 00:00:17]} 6. c3 {[%clk 01:33:01]} {[%emt
00:00:06]} Nge7 {[%clk 01:32:02]} {[%emt 00:00:13]} 7. Bc4 {[%clk 01:33:19]}
{[%emt 00:00:11]} Ne5 {[%clk 01:32:03]} {[%emt 00:00:29]} 8. Be2 {[%clk
01:33:40]} {[%emt 00:00:09]} Qg6 {[%clk 01:31:48]} {[%emt 00:00:44]} 9. O-O
{[%clk 01:33:42]} {[%emt 00:00:29]} Qxe4 {[%clk 01:31:09]} {[%emt 00:01:09]} 10.
Nd2 {[%clk 01:33:09]} {[%emt 00:01:04]} Qg6 {[%clk 01:28:34]} {[%emt 00:03:04]}
11. N2b3 {[%clk 01:29:21]} {[%emt 00:04:20]} Bb6 {[%clk 01:27:16]} {[%emt
00:01:47]} 12. f4 {[%clk 01:13:11]} {[%emt 00:16:39]} Qe4 {[%clk 01:17:59]}
{[%emt 00:09:48]} 13. Qd2 {[%clk 01:12:08]} {[%emt 00:01:32]} N5c6 {[%clk
01:16:19]} {[%emt 00:02:10]} 14. Rae1 {[%clk 00:59:31]} {[%emt 00:13:07]} O-O
{[%clk 01:12:51]} {[%emt 00:03:57]} 15. f5 {[%clk 00:53:17]} {[%emt 00:06:45]}
Nxd4 {[%clk 01:03:34]} {[%emt 00:09:47]} 16. Nxd4 {[%clk 00:53:08]} {[%emt
00:00:38]} c5 {[%clk 00:53:22]} {[%emt 00:10:42]} 17. Nb3 {[%clk 00:44:38]}
{[%emt 00:09:00]} d6 {[%clk 00:16:33]} {[%emt 00:37:20]} 18. Bf3 {[%clk
00:43:08]} {[%emt 00:02:00]} Qe5 {[%clk 00:16:37]} {[%emt 00:00:25]} 19. Bg5
{[%clk 00:43:02]} {[%emt 00:00:36]} c4+ {[%clk 00:08:23]} {[%emt 00:08:45]} 20.
Nd4 {[%clk 00:43:03]} {[%emt 00:00:29]} Bxd4+ {[%clk 00:08:38]} {[%emt
00:00:15]} 21. cxd4 {[%clk 00:43:19]} {[%emt 00:00:14]} Qb5 {[%clk 00:07:30]}
{[%emt 00:01:38]} 22. Bxe7 {[%clk 00:42:48]} {[%emt 00:01:01]} Re8 {[%clk
00:07:41]} {[%emt 00:00:19]} 23. f6 {[%clk 00:40:57]} {[%emt 00:02:20]} gxf6
{[%clk 00:04:40]} {[%emt 00:03:32]} 24. Bxf6 {[%clk 00:40:54]} {[%emt
00:00:33]} Re6 {[%clk 00:02:35]} {[%emt 00:02:35]} 25. Rxe6 {[%clk 00:41:00]}
{[%emt 00:00:24]} fxe6 {[%clk 00:02:52]} {[%emt 00:00:13]} 26. Qh6 {[%clk
00:36:53]} {[%emt 00:04:36]} Qd7 {[%clk 00:02:16]} {[%emt 00:01:07]} 27. Bh5
{[%clk 00:36:37]} {[%emt 00:00:45]} e5 {[%clk 00:00:35]} {[%emt 00:02:11]} 28.
Qg5+ {[%clk 00:36:50]} {[%emt 00:00:17]} Kf8 {[%clk 00:00:48]} {[%emt
00:00:17]} 29. Bh8+ {[%clk 00:36:41]} {[%emt 00:00:40]} Qf7 {[%clk 00:00:42]}
{[%emt 00:00:36]} 30. Qd8# {[%clk 00:37:06]} {[%emt 00:00:04]} 1-0